fUSD/lending_fUSD_20260214
["ID","MTS","AMOUNT","RATE_DAILY","PERIOD"]
[405372583,1771093947857,-500.0,0.00040547,9]
[405372584,1771093947872,-500.0,0.00040547,9]
[405372585,1771093947889,-556.88,0.00040547,9]
[405372586,1771093947906,-5585.82,0.00040547,9]
[405372587,1771093947923,-561.54,0.00040547,9]
[405372588,1771093947941,-1233.52,0.00040547,9]
[405372589,1771093947956,-500.0,0.00040547,9]
[405372590,1771093947974,-500.0,0.00040547,9]
[405372591,1771093947992,-540.9,0.00040547,2]
[405372592,1771093948009,-711.16,0.00040547,9]
[405372593,1771093948025,-500.0,0.00040547,9]
[405372594,1771093948042,-500.0,0.00040547,9]
[405372595,1771093948061,-524.45,0.00040547,9]
[405372596,1771093948076,-500.0,0.00040547,9]
[405372597,1771093948091,-885.44,0.00040547,9]
[405372598,1771093948107,-500.0,0.00040547,9]
[405372599,1771093948121,-500.0,0.00040547,9]
[405372600,1771093948136,-2840.08,0.00040547,9]
[405372601,1771093948152,-500.0,0.00040547,9]
[405372602,1771093948167,-500.0,0.00040547,9]
[405372603,1771093948182,-500.0,0.00040547,9]
[405372604,1771093948198,-500.06,0.00040547,9]
[405372605,1771093948214,-597.58656232,0.00040547,9]
[405372606,1771093948230,-500.0,0.00040547,9]
[405372607,1771093948244,-500.0,0.00040547,9]
[405372608,1771093948258,-500.0,0.00040547,9]
[405372609,1771093948271,-500.0,0.00040547,9]
[405372610,1771093948286,-3032.83,0.00040547,9]
[405372611,1771093948300,-500.0,0.00040547,9]
[405372612,1771093948316,-3433.22,0.00040547,9]
[405372613,1771093948331,-500.0,0.00040547,9]
[405372614,1771093948346,-285.16574223,0.00040547,9]
[405372615,1771093948361,-500.0,0.00040547,9]
[405372616,1771093948379,-416.64688638,0.00040547,9]
[405372617,1771093948394,-574.42213937,0.00040547,9]
[405372618,1771093948415,-631.89,0.00040547,9]
[405372619,1771093948428,-500.0,0.00040547,9]
[405372620,1771093948442,-500.0,0.00040547,9]
[405372621,1771093948456,-500.0,0.00040547,9]
[405372622,1771093948471,-500.0,0.00040547,9]
[405372623,1771093948487,-500.0,0.00040547,9]
[405372624,1771093948503,-500.0,0.00040547,9]
[405372625,1771093948516,-500.0,0.00040547,9]
[405372626,1771093948532,-500.0,0.00040547,9]
[405372627,1771093948545,-500.0,0.00040547,9]
[405372628,1771093948560,-500.0,0.00040547,9]
[405372629,1771093948575,-3775.51,0.00040547,9]
[405372630,1771093948590,-500.0,0.00040547,9]
[405372631,1771093948604,-500.0,0.00040547,9]
[405372632,1771093948617,-500.0,0.00040547,9]
[405372633,1771093948631,-500.0,0.00040547,9]
[405372634,1771093948645,-500.0,0.00040547,9]
[405372635,1771093948661,-1984.08,0.00040547,9]
[405372636,1771093948676,-500.0,0.00040547,9]
[405372637,1771093948690,-500.0,0.00040547,9]
[405372638,1771093948703,-500.0,0.00040547,9]
[405372639,1771093948718,-500.0,0.00040547,9]
[405372640,1771093948731,-500.0,0.00040547,9]
[405372641,1771093948745,-3890.45,0.00040547,9]
[405372642,1771093948759,-500.0,0.00040547,9]
[405372643,1771093948777,-500.0,0.00040547,9]
[405372644,1771093948791,-500.0,0.00040547,9]
[405372645,1771093948804,-4088.99,0.00040547,9]
[405372646,1771093948818,-500.0,0.00040547,9]
[405372647,1771093948832,-500.0,0.00040547,9]
[405372648,1771093948846,-500.0,0.00040547,9]
[405372649,1771093948859,-500.0,0.00040547,9]
[405372650,1771093948873,-500.0,0.00040547,9]
[405372651,1771093948888,-500.0,0.00040547,9]
[405372652,1771093948902,-870.9,0.00040547,9]
[405372653,1771093948916,-500.0,0.00040547,2]
[405372654,1771093948930,-500.0,0.00040547,9]
[405372655,1771093948943,-710.66,0.00040547,9]
[405372656,1771093948957,-500.0,0.00040547,9]
[405372657,1771093948971,-500.0,0.00040547,9]
[405372658,1771093948984,-361.77888717,0.00040547,9]
[405372659,1771093948998,-500.0,0.00040547,9]
[405372660,1771093949010,-3872.17,0.00040547,9]
[405372661,1771093949023,-500.0,0.00040547,9]
[405372662,1771093949037,-500.0,0.00040547,9]
[405372663,1771093949050,-246.3118784,0.00040547,9]
[405372664,1771093949063,-500.0,0.00040547,9]
[405372665,1771093949076,-500.0,0.00040547,9]
[405372666,1771093949089,-577.68,0.00040547,9]
[405372667,1771093949102,-500.0,0.00040547,9]
[405372668,1771093949115,-500.0,0.00040547,9]
[405372669,1771093949129,-500.0,0.00040547,9]
[405372670,1771093949140,-500.0,0.00040547,9]
[405372671,1771093949152,-500.0,0.00040547,9]
[405372672,1771093949165,-500.0,0.00040547,9]
[405372673,1771093949177,-412.52977153,0.00040547,9]
[405372674,1771093949190,-500.0,0.00040547,9]
[405372675,1771093949203,-5100.22,0.00040547,9]
[405372676,1771093949216,-500.0,0.00040547,9]
[405372677,1771093949228,-10810.91,0.00040547,9]
[405372678,1771093949241,-4011.27,0.00040547,9]
[405372679,1771093949253,-4569.78,0.00040547,9]
[405372680,1771093949265,-500.0,0.00040547,9]
[405372681,1771093949279,-3982.43,0.00040547,9]
[405372682,1771093949292,-500.0,0.00040547,9]
[405372683,1771093949305,-500.0,0.00040547,9]
[405372684,1771093949318,-945.81,0.00040547,9]
[405372685,1771093949332,-300.0,0.00040547,2]
[405372686,1771093949344,-5326.62,0.00040547,9]
[405372687,1771093949356,-1374.78,0.00040547,9]
[405372688,1771093949368,-4059.63,0.00040547,9]
[405372689,1771093949381,-500.0,0.00040547,9]
[405372690,1771093949393,-3578.35,0.00040547,9]
[405372691,1771093949405,-500.0,0.00040547,9]
[405372692,1771093949422,-5981.56,0.00040547,9]
[405372693,1771093949434,-500.0,0.00040547,9]
[405372694,1771093949446,-500.0,0.00040547,9]
[405372695,1771093949461,-500.0,0.00040547,9]
[405372696,1771093949473,-5562.93,0.00040547,9]
[405372697,1771093949484,-3804.91,0.00040547,9]
[405372698,1771093949509,-520.74177345,0.00040547,9]
[405372699,1771093949525,-500.0,0.00040547,9]
[405372700,1771093949543,-3292.7,0.00040547,9]
[405372701,1771093949559,-607.30909862,0.00040547,9]
[405372702,1771093949574,-10011.46,0.00040547,9]
[405372703,1771093949588,-500.0,0.00040547,9]
[405372704,1771093949601,-500.0,0.00040547,9]
[405372705,1771093949614,-150.0,0.00040547,9]
[405372706,1771093949627,-5698.9,0.00040547,9]
[405372707,1771093949640,-618.1,0.00040547,9]
[405372708,1771093949653,-500.0,0.00040547,9]
[405372709,1771093949666,-500.0,0.00040547,9]
[405372710,1771093949680,-500.0,0.00040547,9]
[405372711,1771093949693,-500.0,0.00040547,9]
[405372712,1771093949706,-500.0,0.00040547,9]
[405372713,1771093949718,-500.0,0.00040547,9]
[405372714,1771093949729,-500.0,0.00040547,9]
[405372715,1771093949741,-3635.6,0.00040547,9]
[405372716,1771093949755,-4860.79,0.00040547,9]
[405372717,1771093949766,-585.84,0.00040547,9]
[405372718,1771093949780,-500.0,0.00040547,9]
[405372719,1771093949793,-5822.07,0.00040547,9]
[405372720,1771093949804,-500.0,0.00040547,9]
[405372721,1771093949817,-8145.86,0.00040547,9]
[405372722,1771093949830,-485.65430479,0.00040547,9]
[405372723,1771093949842,-3702.56,0.00040547,9]
[405372724,1771093949854,-1020.67,0.00040547,9]
[405372725,1771093949866,-500.0,0.00040547,9]
[405372726,1771093949878,-500.0,0.00040547,9]
[405372727,1771093949891,-2809.91,0.00040547,15]
[405372728,1771093949904,-579.77,0.00040547,9]
[405372729,1771093949917,-500.0,0.00040547,9]
[405372730,1771093949928,-500.0,0.00040547,9]
[405372731,1771093949941,-692.65,0.00040547,9]
[405372732,1771093949954,-835.77,0.00040547,9]
[405372733,1771093949967,-418.14754323,0.00040547,9]
[405372734,1771093949980,-158.52227497,0.00040547,9]
[405372735,1771093949992,-500.0,0.00040547,9]
[405372736,1771093950005,-500.0,0.00040547,9]
[405372737,1771093950017,-500.0,0.00040547,9]
[405372738,1771093950030,-4321.01,0.00040547,9]
[405372739,1771093950043,-500.0,0.00040547,9]
[405372740,1771093950055,-586.26398788,0.00040547,9]
[405372741,1771093950067,-500.0,0.00040547,9]
[405372742,1771093950080,-5541.84,0.00040547,9]
[405372743,1771093950477,-11996.33,0.00040547,9]
[405372744,1771093950496,-500.0,0.00040547,9]
[405372745,1771093950505,-500.0,0.00040547,9]
[405372746,1771093950515,-4068.1,0.00040547,9]
[405372747,1771093950525,-500.0,0.00040547,9]
[405372748,1771093950535,-500.0,0.00040547,9]
[405372749,1771093950544,-3498.65,0.00040547,9]
[405372750,1771093950553,-500.0,0.00040547,9]
[405372751,1771093950563,-419.03015777,0.00040547,9]
[405372752,1771093950573,-4772.89,0.00040547,9]
[405372753,1771093950582,-3599.74,0.00040547,9]
[405372754,1771093950591,-3590.36,0.00040547,9]
[405372755,1771093950601,-500.0,0.00040547,9]
[405372756,1771093950611,-500.0,0.00040547,9]
[405372757,1771093950620,-579.04398575,0.00040547,9]
[405372758,1771093950630,-555.53,0.00040547,9]
[405372759,1771093950640,-500.0,0.00040547,9]
[405372760,1771093950649,-500.0,0.00040547,9]
[405372761,1771093950659,-500.0,0.00040547,9]
[405372762,1771093950668,-500.0,0.00040547,9]
[405372763,1771093950678,-3986.91,0.00040547,9]
[405372764,1771093950687,-602.84,0.00040547,9]
[405372765,1771093950697,-4500.2,0.00040547,9]
[405372766,1771093950706,-500.0,0.00040547,9]
[405372767,1771093950716,-500.0,0.00040547,9]
[405372768,1771093950726,-500.0,0.00040547,9]
[405372769,1771093950735,-500.0,0.00040547,9]
[405372770,1771093950744,-500.0,0.00040547,9]
[405372771,1771093950753,-500.0,0.00040547,9]
[405372772,1771093950762,-500.0,0.00040547,9]
[405372773,1771093950772,-500.0,0.00040547,9]
[405372774,1771093950782,-17167.11,0.00040547,15]
[405372775,1771093950791,-578.39125395,0.00040547,9]
[405372776,1771093950801,-500.0,0.00040547,9]
[405372777,1771093950811,-500.0,0.00040547,9]
[405372778,1771093950821,-500.0,0.00040547,9]
[405372779,1771093950831,-500.0,0.00040547,9]
[405372780,1771093950841,-500.0,0.00040547,9]
[405372781,1771093950850,-6987.05,0.00040547,9]
[405372782,1771093950860,-500.0,0.00040547,9]
[405372783,1771093950870,-792.61,0.00040547,9]
[405372784,1771093950880,-500.0,0.00040547,9]
[405372785,1771093950889,-3809.76,0.00040547,9]
[405372786,1771093950899,-500.0,0.00040547,9]
[405372787,1771093950908,-500.0,0.00040547,9]
[405372788,1771093950918,-1872.91,0.00040547,9]
[405372789,1771093950928,-562.08874295,0.00040547,9]
[405372790,1771093950938,-279.06365908,0.00040547,9]
[405372791,1771093950947,-751.97,0.00040547,9]
[405372792,1771093950956,-4301.09,0.00040547,9]
[405372793,1771093950965,-500.0,0.00040547,9]
[405372794,1771093950974,-500.0,0.00040547,9]
[405372795,1771093950984,-500.0,0.00040547,9]
[405372796,1771093950993,-456.26075448,0.00040547,9]
[405372797,1771093951003,-500.0,0.00040547,9]
[405372798,1771093951013,-500.0,0.00040547,9]
[405372799,1771093951022,-550.64489587,0.00040547,9]
[405372800,1771093951031,-500.0,0.00040547,9]
[405372801,1771093951041,-49453.89,0.00040547,9]
[405372802,1771093951050,-500.0,0.00040547,9]
[405372803,1771093951059,-514.79,0.00040547,9]
[405372804,1771093951068,-500.0,0.00040547,9]
[405372805,1771093951078,-500.0,0.00040547,9]
[405372806,1771093951087,-522.72,0.00040547,9]
[405372807,1771093951097,-500.0,0.00040547,9]
[405372808,1771093951106,-500.0,0.00040547,9]
[405372809,1771093951115,-3592.54,0.00040547,9]
[405372810,1771093951124,-500.0,0.00040547,9]
[405372811,1771093951134,-500.0,0.00040547,9]
[405372812,1771093951143,-6816.69,0.00040547,9]
[405372813,1771093951152,-6877.26,0.00040547,9]
[405372814,1771093951162,-500.0,0.00040547,9]
[405372815,1771093951171,-500.0,0.00040547,9]
[405372816,1771093951181,-3548.79,0.00040547,9]
[405372817,1771093951190,-643.83,0.00040547,9]
[405372818,1771093951199,-5429.53,0.00040547,9]
[405372819,1771093951209,-500.0,0.00040547,9]
[405372820,1771093951219,-500.0,0.00040547,9]
[405372821,1771093951228,-611.43830519,0.00040547,9]
[405372822,1771093951237,-500.0,0.00040547,9]
[405372823,1771093951247,-500.0,0.00040547,9]
[405372824,1771093951257,-4648.43,0.00040547,9]
[405372825,1771093951266,-500.0,0.00040547,9]
[405372826,1771093951276,-500.0,0.00040547,9]
[405372827,1771093951286,-685.71,0.00040547,9]
[405372828,1771093951295,-500.0,0.00040547,9]
[405372829,1771093951304,-162.84866315,0.00040547,9]
[405372830,1771093951313,-500.0,0.00040547,9]
[405372831,1771093951323,-1668.59,0.00040547,9]
[405372832,1771093951334,-500.0,0.00040547,9]
[405372833,1771093951344,-622.0,0.00040547,9]
[405372834,1771093951353,-4113.81,0.00040547,9]
[405372835,1771093951363,-500.0,0.00040547,9]
[405372836,1771093951372,-500.0,0.00040547,120]
[405372837,1771093951382,-735.58,0.00040547,9]
[405372838,1771093951392,-500.0,0.00040547,9]
[405372839,1771093951401,-1564.16,0.00040547,9]
[405372840,1771093951411,-500.0,0.00040547,9]
[405372841,1771093951424,-348.28392943,0.00040547,9]
[405372842,1771093951433,-678.21,0.00040547,9]
[405372843,1771093951443,-2515.75,0.00040547,9]
[405372844,1771093951454,-500.0,0.00040547,9]
[405372845,1771093951464,-4400.86,0.00040547,9]
[405372846,1771093951473,-500.0,0.00040547,9]
[405372847,1771093951483,-579.75,0.00040547,9]
[405372848,1771093951492,-798.86,0.00040547,9]
[405372849,1771093951501,-500.0,0.00040547,9]
[405372850,1771093951511,-1141.19,0.00040547,9]
[405372851,1771093951520,-995.04,0.00040547,9]
[405372852,1771093951530,-9716.73,0.00040547,9]
[405372853,1771093951539,-500.0,0.00040547,9]
[405372854,1771093951548,-468.77483965,0.00040547,9]
[405372855,1771093951557,-479.75,0.00040547,9]
[405372856,1771093951567,-500.0,0.00040547,9]
[405372857,1771093951576,-500.0,0.00040547,9]
[405372858,1771093951585,-500.0,0.00040547,9]
[405372859,1771093951594,-4640.07,0.00040547,9]
[405372860,1771093951603,-1058.89,0.00040547,9]
[405372861,1771093951612,-4083.12,0.00040547,9]
[405372862,1771093951621,-500.0,0.00040547,9]
[405372863,1771093951631,-499.0,0.0004059,120]
[405372864,1771093951640,-499.0,0.0004059,120]
[405372865,1771093951649,-150.0,0.00040722,7]
[405372866,1771093951659,-150.0,0.00040722,7]
[405372867,1771093951670,-150.0,0.00040722,7]
[405372868,1771093951679,-150.0,0.00040722,7]
[405372869,1771093951689,-150.0,0.00040722,7]
[405372870,1771093951698,-5093.12858519,0.0004073,2]
[405372871,1771093951707,-5000.0,0.0004073,4]
[405372872,1771093951716,-5000.0,0.0004073,2]
[405372873,1771093951726,-5000.0,0.0004073,7]
[405372874,1771093951735,-5000.0,0.0004073,7]
[405372875,1771093951744,-213.63321483,0.0004074,120]
[405372876,1771093951753,-11212.39,0.0004075,120]
[405372877,1771093951762,-152.0,0.000408,120]
[405372878,1771093951771,-152.800091,0.00040821,9]
[405372879,1771093951781,-151.082823,0.00040821,9]
[405372880,1771093951790,-500.0,0.00040821,2]
[405372881,1771093951800,-500.0,0.00040821,9]
[405372882,1771093951808,-500.0,0.00040821,9]
[405372883,1771093951818,-500.0,0.00040821,9]
[405372884,1771093951827,-500.0,0.00040821,9]
[405372885,1771093951837,-500.0,0.00040821,9]
[405372886,1771093951846,-500.0,0.00040821,9]
[405372887,1771093951855,-570.33254958,0.00040821,9]
[405372888,1771093951865,-500.0,0.00040821,9]
[405372889,1771093951874,-500.0,0.00040821,9]
[405372890,1771093951884,-500.0,0.00040821,9]
[405372891,1771093951893,-500.0,0.00040821,9]
[405372892,1771093951903,-359.29150126,0.00040821,9]
[405372893,1771093951913,-167.09441185,0.00040821,9]
[405372894,1771093951923,-168.92113786,0.00040821,9]
[405372895,1771093951933,-500.0,0.00040821,9]
[405372896,1771093951942,-2236.17,0.00040821,9]
[405372897,1771093951952,-500.0,0.00040821,9]
[405372898,1771093951961,-577.51081919,0.00040821,9]
[405372899,1771093951971,-500.0,0.00040821,9]
[405372900,1771093951981,-500.0,0.00040821,9]
[405372901,1771093951991,-500.0,0.00040821,9]
[405372902,1771093952000,-500.0,0.00040821,9]
[405372903,1771093952010,-500.0,0.00040821,9]
[405372904,1771093952020,-1499.27,0.00040821,9]
[405372905,1771093952030,-500.0,0.00040821,9]
[405372906,1771093952041,-500.0,0.00040821,9]
[405372907,1771093952050,-500.0,0.00040821,9]
[405372908,1771093952059,-500.0,0.00040821,9]
[405372909,1771093952069,-500.0,0.00040821,9]
[405372910,1771093952079,-530.55,0.00040821,9]
[405372911,1771093952088,-679.39,0.00040821,9]
[405372912,1771093952098,-500.0,0.00040821,9]
[405372913,1771093952107,-500.0,0.00040821,9]
[405372914,1771093952116,-500.0,0.00040821,9]
[405372915,1771093952125,-425.12,0.00040821,2]
[405372916,1771093952134,-500.0,0.00040821,9]
[405372917,1771093952144,-500.0,0.00040821,9]
[405372918,1771093952153,-500.0,0.00040821,9]
[405372919,1771093952162,-500.0,0.00040821,9]
[405372920,1771093952171,-500.0,0.00040821,9]
[405372921,1771093952180,-500.0,0.00040821,9]
[405372922,1771093952189,-500.0,0.00040821,9]
[405372923,1771093952198,-500.0,0.00040821,9]
[405372924,1771093952208,-500.0,0.00040821,9]
[405372925,1771093952217,-3818.35,0.00040821,9]
[405372926,1771093952226,-500.0,0.00040821,9]
[405372927,1771093952235,-500.0,0.00040821,9]
[405372928,1771093952244,-500.0,0.00040821,9]
[405372929,1771093952254,-500.0,0.00040821,9]
[405372930,1771093952264,-500.0,0.00040821,9]
[405372931,1771093952273,-500.0,0.00040821,9]
[405372932,1771093952284,-500.0,0.00040821,9]
[405372933,1771093952294,-500.0,0.00040821,9]
[405372934,1771093952303,-500.0,0.00040821,9]
[405372935,1771093952313,-500.0,0.00040821,9]
[405372936,1771093952322,-545.61896141,0.00040821,9]
[405372937,1771093952332,-500.0,0.00040821,9]
[405372938,1771093952342,-500.0,0.00040821,9]
[405372939,1771093952351,-500.0,0.00040821,9]
[405372940,1771093952360,-1478.52,0.00040821,9]
[405372941,1771093952370,-500.0,0.00040821,9]
[405372942,1771093952380,-500.0,0.00040821,9]
[405372943,1771093952389,-500.0,0.00040821,9]
[405372944,1771093952399,-500.0,0.00040821,9]
[405372945,1771093952409,-500.0,0.00040821,9]
[405372946,1771093952421,-500.0,0.00040821,9]
[405372947,1771093952431,-500.0,0.00040821,9]
[405372948,1771093952441,-500.0,0.00040821,9]
[405372949,1771093952451,-500.0,0.00040821,9]
[405372950,1771093952461,-355.86959602,0.00040821,9]
[405372951,1771093952471,-3459.63,0.00040821,9]
[405372952,1771093952480,-1007.77,0.00040821,9]
[405372953,1771093952490,-1366.15,0.00040821,2]
[405372954,1771093952500,-500.0,0.00040821,9]
[405372955,1771093952509,-500.0,0.00040821,9]
[405372956,1771093952519,-500.0,0.00040821,9]
[405372957,1771093952529,-1397.34,0.00040821,9]
[405372958,1771093952538,-500.0,0.00040821,9]
[405372959,1771093952547,-500.0,0.00040821,9]
[405372960,1771093952557,-500.0,0.00040821,9]
[405372961,1771093952567,-581.99,0.00040821,9]
[405372962,1771093952577,-224.87013562,0.00040821,9]
[405372963,1771093952586,-500.0,0.00040821,9]
[405372964,1771093952596,-500.0,0.00040821,9]
[405372965,1771093952605,-500.0,0.00040821,9]
[405372966,1771093952615,-500.0,0.00040821,9]
[405372967,1771093952624,-293.50089064,0.00040821,9]
[405372968,1771093952633,-3781.3,0.00040821,9]
[405372969,1771093952643,-500.0,0.00040821,9]
[405372970,1771093952652,-530.75995258,0.00040821,9]
[405372971,1771093952661,-500.0,0.00040821,9]
[405372972,1771093952671,-500.0,0.00040821,9]
[405372973,1771093952680,-500.0,0.00040821,9]
[405372974,1771093952689,-500.0,0.00040821,9]
[405372975,1771093952699,-500.0,0.00040821,9]
[405372976,1771093952708,-500.0,0.00040821,9]
[405372977,1771093952718,-288.05593387,0.00040821,9]
[405372978,1771093952728,-500.0,0.00040821,9]
[405372979,1771093952738,-500.0,0.00040821,9]
[405372980,1771093952747,-500.0,0.00040821,9]
[405372981,1771093952757,-500.0,0.00040821,9]
[405372982,1771093952766,-500.0,0.00040821,9]
[405372983,1771093952776,-500.0,0.00040821,9]
[405372984,1771093952787,-500.0,0.00040821,9]
[405372985,1771093952796,-665.99,0.00040821,9]
[405372986,1771093952806,-500.0,0.00040821,9]
[405372987,1771093952816,-500.0,0.00040821,9]
[405372988,1771093952826,-500.0,0.00040821,9]
[405372989,1771093952836,-500.0,0.00040821,9]
[405372990,1771093952845,-500.0,0.00040821,9]
[405372991,1771093952855,-512.2,0.00040821,9]
[405372992,1771093952864,-500.0,0.00040821,9]
[405372993,1771093952874,-500.0,0.00040821,9]
[405372994,1771093952884,-500.0,0.00040821,9]
[405372995,1771093952894,-500.0,0.00040821,9]
[405372996,1771093952904,-3417.97,0.00040821,9]
[405372997,1771093952914,-500.0,0.00040821,9]
[405372998,1771093952923,-500.0,0.00040821,9]
[405372999,1771093952933,-500.0,0.00040821,9]
[405373000,1771093952943,-500.0,0.00040821,9]
[405373001,1771093952953,-5149.98,0.00040821,9]
[405373002,1771093952963,-500.0,0.00040821,9]
[405373003,1771093952973,-500.0,0.00040821,9]
[405373004,1771093952983,-3403.19,0.00040821,9]
[405373005,1771093952993,-327.82354071,0.00040821,9]
[405373006,1771093953003,-500.0,0.00040821,9]
[405373007,1771093953013,-538.62,0.00040821,9]
[405373008,1771093953023,-500.0,0.00040821,9]
[405373009,1771093953033,-500.0,0.00040821,9]
[405373010,1771093953043,-500.0,0.00040821,9]
[405373011,1771093953052,-500.0,0.00040821,9]
[405373012,1771093953061,-556.88,0.00040821,9]
[405373013,1771093953071,-5585.82,0.00040821,9]
[405373014,1771093953081,-561.54,0.00040821,9]
[405373015,1771093953090,-1233.52,0.00040821,9]
[405373016,1771093953099,-500.0,0.00040821,9]
[405373017,1771093953109,-500.0,0.00040821,9]
[405373018,1771093953118,-540.9,0.00040821,2]
[405373019,1771093953128,-711.16,0.00040821,9]
[405373020,1771093953138,-500.0,0.00040821,9]
[405373021,1771093953147,-500.0,0.00040821,9]
[405373022,1771093953157,-524.45,0.00040821,9]
[405373023,1771093953166,-500.0,0.00040821,9]
[405373024,1771093953176,-885.44,0.00040821,9]
[405373025,1771093953186,-500.0,0.00040821,9]
[405373026,1771093953195,-500.0,0.00040821,9]
[405373027,1771093953204,-2840.08,0.00040821,9]
[405373028,1771093953214,-500.0,0.00040821,9]
[405373029,1771093953224,-500.0,0.00040821,9]
[405373030,1771093953234,-500.0,0.00040821,9]
[405373031,1771093953243,-500.06,0.00040821,9]
[405373032,1771093953253,-500.0,0.00040821,9]
[405373033,1771093953263,-500.0,0.00040821,9]
[405373034,1771093953272,-500.0,0.00040821,9]
[405373035,1771093953282,-500.0,0.00040821,9]
[405373036,1771093953292,-3032.83,0.00040821,9]
[405373037,1771093953301,-500.0,0.00040821,9]
[405373038,1771093953311,-3433.22,0.00040821,9]
[405373039,1771093953321,-241.9415494,0.00040821,9]
[405373040,1771093953331,-298.398487,0.00040821,9]
[405373041,1771093953340,-631.89,0.00040821,9]
[405373042,1771093953350,-500.0,0.00040821,9]
[405373043,1771093953360,-196.05658053,0.00040821,9]
[405373044,1771093953370,-500.0,0.00040821,9]
[405373045,1771093953380,-500.0,0.00040821,9]
[405373046,1771093953390,-500.0,0.00040821,9]
[405373047,1771093953400,-500.0,0.00040821,9]
[405373048,1771093953410,-500.0,0.00040821,9]
[405373049,1771093953425,-500.0,0.00040821,9]
[405373050,1771093953435,-500.0,0.00040821,9]
[405373051,1771093953445,-500.0,0.00040821,9]
[405373052,1771093953456,-3775.51,0.00040821,9]
[405373053,1771093953466,-500.0,0.00040821,9]
[405373054,1771093953476,-500.0,0.00040821,9]
[405373055,1771093953488,-394.43625779,0.00040821,9]
[405373056,1771093953499,-500.0,0.00040821,9]
[405373057,1771093953509,-500.0,0.00040821,9]
[405373058,1771093953519,-1984.08,0.00040821,9]
[405373059,1771093953529,-500.0,0.00040821,9]
[405373060,1771093953539,-500.0,0.00040821,9]
[405373061,1771093953549,-500.0,0.00040821,9]
[405373062,1771093953559,-500.0,0.00040821,9]
[405373063,1771093953569,-500.0,0.00040821,9]
[405373064,1771093953579,-3890.45,0.00040821,9]
[405373065,1771093953588,-500.0,0.00040821,9]
[405373066,1771093953599,-500.0,0.00040821,9]
[405373067,1771093953789,-500.0,0.00040821,9]
[405373068,1771093953828,-4088.99,0.00040821,9]
[405373069,1771093953838,-500.0,0.00040821,9]
[405373070,1771093953848,-500.0,0.00040821,9]
[405373071,1771093953859,-500.0,0.00040821,9]
[405373072,1771093953869,-500.0,0.00040821,9]
[405373073,1771093953879,-540.07861054,0.00040821,9]
[405373074,1771093953889,-500.0,0.00040821,9]
[405373075,1771093953901,-870.9,0.00040821,9]
[405373076,1771093953911,-500.0,0.00040821,2]
[405373077,1771093953921,-500.0,0.00040821,9]
[405373078,1771093953931,-710.66,0.00040821,9]
[405373079,1771093953940,-500.0,0.00040821,9]
[405373080,1771093953951,-500.0,0.00040821,9]
[405373081,1771093953962,-351.25337066,0.00040821,9]
[405373082,1771093953972,-3872.17,0.00040821,9]